Cogmind - Beta 10.2 @@@ ROGUE MODE // 2021.04.27 @ 02:41:30 Player: Cinquain Result: Destroyed by as-58490 with Assembled Maul Performance ------------- Evolutions (0) 0 Regions Visited (2) 400 Robots Destroyed (27) 135 Value Destroyed (732) 732 Prototype IDs (0) 0 Alien Tech Used (0) 0 Bonus (0) 0 TOTAL SCORE: 1267 Bonus ------- None Cogmind --------- Core Integrity 0/250 Matter 269/300 Energy 100/100 System Corruption 4% Temperature Cool (0) Movement Walking (160) Ox1 Location -10/Mines Parts ------- > --- POWER (1) -------- (None) > --- PROPULSION (2) --- Titanium Leg > --- UTILITY (2) ------ Large Storage Unit > --- WEAPON (2) ------- Improved Light Cannon > --- INVENTORY (10) --- Ion Engine Ion Engine Light Nuclear Core Large Storage Unit Improved Signal Interpreter Advanced Signal Interpreter Hacking Suite Hacking Suite Particle Gun Peak State ------------ > --- POWER ------------ Light Nuclear Core > --- PROPULSION ------- Carbon-fiber Leg Titanium Leg > --- UTILITY ---------- Large Storage Unit Improved Signal Interpreter > --- WEAPON ----------- Beamcaster Improved Light Cannon > --- INVENTORY -------- Ion Engine Ion Engine Light Nuclear Core Large Storage Unit Improved Signal Interpreter Advanced Signal Interpreter Hacking Suite Hacking Suite Particle Gun Improved Light Cannon [Rating: 21] Favorites ----------- Power Light Ion Engine Engine Light Ion Engine Power Core Light Nuclear Core Propulsion Light Treads Treads Light Treads Leg Titanium Leg Utility Improved Signal Interpreter Storage Large Storage Unit Processor Improved Signal Interpreter Weapon Improved Light Cannon Energy Gun EM Pulse Gun Ballistic Cannon Improved Light Cannon Build | -11 -10 -10 ------- Run | Scr Mat Min Slots Evolved . | . . . Power . | . . . Propulsion . | . . . Utility . | . . . Weapon . | . . . Parts Attached 20 | 6 5 9 Power 2 | 1 . 1 Engine 1 | 1 . . Core 1 | . . 1 Reactor . | . . . Propulsion 6 | 2 . 4 Treads 2 | 2 . . Leg 4 | . . 4 Wheel . | . . . Hover . | . . . Flight . | . . . Utility 3 | 1 2 . Device . | . . . Storage 2 | 1 1 . Processor 1 | . 1 . Hackware . | . . . Protection . | . . . Artifact . | . . . Weapon 9 | 2 3 4 Energy Gun 5 | 2 1 2 Energy Cannon . | . . . Ballistic Gun . | . . . Ballistic Cannon 4 | . 2 2 Launcher . | . . . Special Weapon . | . . . Impact Weapon . | . . . Slashing Weapon . | . . . Piercing Weapon . | . . . Special Melee Weapon . | . . . Unidentified Prototypes . | . . . Parts Lost 10 | . . 10 Power 2 | . . 2 Propulsion 3 | . . 3 Utility 1 | . . 1 Weapon 4 | . . 4 Highest Loss Streak 4 | . . 4 Average Slot Usage (%) 93 | . 98 83 Engine 9 | . 14 2 Core 1 | . . 5 Treads 19 | . 28 4 Leg 7 | . . 21 Storage 14 | . 14 14 Processor 12 | . 12 12 Energy Gun 2 | . 2 1 Ballistic Cannon 23 | . 25 20 Naked Turns . | . . . Heaviest Build 30 | 11 27 30 Greatest Support 40 | 40 40 40 Greatest Overweight (x) 1 | . . 1 Average Overweight (x) . | . . . Largest Inventory Capacity 10 | 6 10 10 Average Capacity 9 | 5 9 10 Most Carried 10 | 6 9 10 Average Carried 7 | 4 7 8 Final Capacity 10 | 6 10 10 Final Carried 9 | 6 9 9 Class Distribution -------------------- 100% | Mutant Dominant Class ---------------- Mutant | -10/Materials Mutant | -10/Mines Resources | -11 -10 -10 ----------- Run | Scr Mat Min Matter Collected 846 | 249 310 287 Remotely . | . . . Salvage Created 736 | 15 496 225 Parts 42 | 2 31 9 Haulers Intercepted . | . . . Recyclers Shooed 1 | . 1 . Parts Field Recycled . | . . . Retrieved Matter . | . . . Parts Self-Destructed . | . . . Prevented . | . . . Kills | -11 -10 -10 ------- Run | Scr Mat Min Combat Hostiles Destroyed 26 | . 13 13 Guns 2 | . . 2 Cannons 24 | . 13 11 Classes Destroyed 7 | 1 5 1 Worker 3 | 1 2 . Recycler 1 | . 1 . Operator 3 | . 3 . Watcher 1 | . 1 . Swarmer 3 | . 3 . Grunt 16 | . 10 6 Assembled 7 | . . 7 Best Kill Streak 7 | 1 4 7 Combat Bots Only 7 | . 4 7 Max Kills in Single Turn 1 | 1 1 1 Gunslinging . | . . . Exploded . | . . . Melee . | . . . Uniques/NPCs Destroyed . | . . . Combat | -11 -10 -10 -------- Run | Scr Mat Min Damage Taken 1511 | . 246 1265 Core 254 | . 32 222 Absorbed by Shields . | . . . Core Remaining (%) 100 | 100 . . Volleys Fired 76 | 1 39 36 Largest 2 | 2 2 2 Hottest 90 | 90 78 79 Shots Fired 140 | 2 78 60 Gun 10 | 2 . 8 Cannon 130 | . 78 52 Launcher . | . . . Special . | . . . Kinetic 130 | . 78 52 Thermal 9 | 1 . 8 Explosive . | . . . Electromagnetic 1 | 1 . . Robot Hit Streak 10 | 1 9 10 Robot Miss Streak 3 | . 3 3 Penetration Max . | . . . Secondary Targets . | . . . Shots Hit Robots 89 | 1 46 42 Core Hits 43 | 1 22 20 Critical Hits 1 | . 1 . Critical Kills 1 | . 1 . Critical Parts Destroyed . | . . . Melee Attacks . | . . . Impact . | . . . Slashing . | . . . Piercing . | . . . Sneak Attacks . | . . . Combat Hostiles . | . . . Follow-up Attacks . | . . . Damage Inflicted 1686 | 26 927 733 Guns 93 | 26 . 67 Cannons 1593 | . 927 666 Explosions . | . . . Melee . | . . . Ramming . | . . . Kinetic 1593 | . 927 666 Thermal 80 | 13 . 67 Explosive . | . . . Electromagnetic 13 | 13 . . Impact . | . . . Slashing . | . . . Piercing . | . . . Highest Corruption 4 | . . 4 Average Corruption 4 | . . 4 Corruption Purged . | . . . Effects 2 | . . 2 Matter Fused 1 | . . 1 Energy Discharges 1 | . . 1 Overload Shots . | . . . Overflow Damage 42 | . 20 22 Projectiles 42 | . 20 22 Explosions . | . . . Melee . | . . . Knockbacks 12 | . 8 4 Impact . | . . . Kinetic 11 | . 8 3 Secondary 1 | . . 1 Self-Inflicted Damage . | . . . Shots . | . . . Rammed . | . . . Targets Rammed . | . . . Kicked . | . . . Crushed . | . . . Highest Temperature 105 | 30 99 105 Average Temperature 39 | 20 31 50 Received Heat Transfer 365 | . 123 242 Siege Activations . | . . . Robots Corrupted . | . . . Combat Hostiles . | . . . Parts Fried . | . . . Impact Corruptions . | . . . Robots Melted . | . . . Combat Hostiles . | . . . Parts Melted . | . . . Heat Transferred 187 | 37 . 150 Parts Sabotaged . | . . . Parts Stolen . | . . . Parts Stripped . | . . . Power Chain Reactions . | . . . Missiles Intercepted . | . . . Alert | -11 -10 -10 ------- Run | Scr Mat Min Peak Influence 206 | 5 206 137 Initial 7 | . 3 7 Average 59 | . 57 77 Maximum Alert Level 1 | . 1 . Low Security (%) 99 | 100 99 100 Level 1 . | . . . Level 2 . | . . . Level 3 . | . . . Level 4 . | . . . Level 5 . | . . . High Security . | . . . Max Security . | . . . Squads Dispatched 2 | . 2 . Investigation 2 | . 2 . Extermination . | . . . Reinforcement . | . . . Assault . | . . . Garrison . | . . . Intercept . | . . . Construction Impeded . | . . . Haulers Reinforced . | . . . Stealth | -11 -10 -10 --------- Run | Scr Mat Min Distress Signals 2 | . 2 . Communications Jammed . | . . . Distress Signals . | . . . Times Spotted 45 | . 27 18 Peak Tracking Total 6 | . 6 5 Tactical Retreats 1 | . . 1 Traps | -11 -10 -10 ------- Run | Scr Mat Min Traps Triggered 1 | . 1 . Indirectly . | . . . Trap Hack Attempts . | . . . Triggered . | . . . Disarmed . | . . . Reprogrammed . | . . . Reused 4 | . . 4 Traps Extracted . | . . . Installed 4 | . . 4 Triggered . | . . . Machines | -11 -10 -10 ---------- Run | Scr Mat Min Machines Disabled 3 | . 2 1 Max in Single Turn 1 | . 1 1 Machines Sabotaged . | . . . Garrisons Compromised . | . . . Overloaded Fab Kills . | . . . Fab Network Shutdowns . | . . . Hacking | -11 -10 -10 --------- Run | Scr Mat Min Machines Accessed 7 | . 6 1 Terminals 6 | . 6 . Fabricators . | . . . Repair Stations . | . . . Recycling Units . | . . . Scanalyzers . | . . . Garrison Access . | . . . Total Hacks 19 | . 18 1 Successful 9 | . 8 1 Failed 10 | . 10 . Catastrophic 2 | . 2 . Database Lockouts . | . . . Manual 16 | . 16 . Terminals 18 | . 18 . Fabricators . | . . . Repair Stations . | . . . Recycling Units . | . . . Scanalyzers . | . . . Garrison Access . | . . . Terminal Hacks 5 | . 4 1 Part Schematic 1 | . 1 . Open Door 1 | . . 1 Unreport Threat 1 | . 1 . Locate Traps 1 | . 1 . Hauler Manifests 1 | . 1 . Fabricator Hacks . | . . . Repair Station Hacks . | . . . Recycling Unit Hacks . | . . . Scanalyzer . | . . . Garrison Access Hacks . | . . . Unauthorized Hacks 4 | . 4 . Terminals 4 | . 4 . Track 1 | . 1 . Botnet 2 | . 2 . Operators 1 | . 1 . Fabricators . | . . . Repair Stations . | . . . Recycling Units . | . . . Scanalyzers . | . . . Garrison Access . | . . . Data Cores Recovered 3 | . 3 . Used . | . . . Hacking Detections 6 | . 6 . Full Trace Events 2 | . 2 . Feedback Events . | . . . Feedback Blocked . | . . . Robot Schematics Acquired . | . . . Robots Built . | . . . Matter . | . . . Time . | . . . Total Robot Build Rating . | . . . Part Schematics Acquired 1 | . 1 . Parts Built . | . . . Matter . | . . . Time . | . . . Total Part Build Rating . | . . . Parts Repaired . | . . . Time . | . . . Parts Recycled . | . . . Recycled Matter . | . . . Retrieved Matter . | . . . Retrieved Components . | . . . Parts Scanalyzed . | . . . Part Schematics Acquired . | . . . Parts Damaged . | . . . Bothacking | -11 -10 -10 ------------ Run | Scr Mat Min Used RIF Installer . | . . . Robots Hacked . | . . . Non-combat . | . . . Combat . | . . . Robot Hacks Applied . | . . . Relay Couplers Released . | . . . Robots Rewired . | . . . Allies Hacked . | . . . Hacks Repelled . | . . . Allies | -11 -10 -10 -------- Run | Scr Mat Min Total Allies . | . . . Largest Group . | . . . Highest-Rated Group . | . . . Highest-Rated Ally . | . . . Total Orders . | . . . Ally Attacks . | . . . Total Damage . | . . . Kills . | . . . Allies Corrupted . | . . . Allies Melted . | . . . Intel | -11 -10 -10 ------- Run | Scr Mat Min Robot Analysis Total . | . . . Derelict Logs Recovered . | . . . Drone Launches . | . . . Drone Recoveries . | . . . Exploration | -11 -10 -10 ------------- Run | Scr Mat Min Turns Passed 1439 | 106 878 455 Spaces Moved 755 | 71 440 244 Core 24 | 24 . . Treads 503 | 47 440 16 Legs 228 | . . 228 Wheels . | . . . Hover . | . . . Flight . | . . . Fastest Speed 50 | 50 160 120 Average Speed 146 | 122 160 128 Slowest Speed 160 | 160 160 160 Overloaded Moves . | . . . Propulsion Burnouts . | . . . Robots Hopped . | . . . Cave-ins Triggered . | . . . Exploration Rate (%) 36 | 5 65 38 Regions Visited 2 Branch Regions 1 Pre-discovered Areas . | . . . Known Exits Taken 1 | . 1 . Unknown Exits Taken 1 | 1 . . Scrap Searched . | . . . Spaces Dug . | . . . Terrain Destroyed 5 | . 4 1 Melee . | . . . Projectile 5 | . 4 1 AOE . | . . . Terrain Rammed . | . . . Walls Destroyed . | . . . Machines Disabled . | . . . Actions | -11 -10 -10 --------- Run | Scr Mat Min Total 950 | 86 539 325 Wait 65 | . 43 22 Move 753 | 70 439 244 Hop . | . . . Pick Up 22 | 9 6 7 Fast Attach 8 | 3 3 2 Attach 8 | 3 . 5 Detach . | . . . Swap 4 | . 2 2 Drop 10 | . 7 3 Fire 76 | 1 39 36 Melee . | . . . Ram . | . . . Kick . | . . . Crush . | . . . Escape Stasis . | . . . Rewire . | . . . Trap 4 | . . 4 Miscellaneous . | . . . Route ------- -11/Scrapyard -10/Materials -10/Mines History --------- Turn | Location | Event 14 | -11/Scrapyard | Discovered new exit (range 16) 107 | -11/Scrapyard | Entered Materials 304 | -10/Materials | Build established: Mutant 378 | -10/Materials | Discovered new exit (range 13) 785 | -10/Materials | Identified exit to Mines 985 | -10/Materials | Entered Mines 986 | -10/Mines | Assembled infested the area 1099 | -10/Mines | Lost 4 parts (1p1n2w) 1103 | -10/Mines | Destroyed 7 combat bots 1136 | -10/Mines | Core integrity fell below 50% 1194 | -10/Mines | Met a Derelict who couldn't figure out how to use a Trap Extractor 1230 | -10/Mines | Found a hidden stash of uninstalled traps 1363 | -10/Mines | Core integrity fell below 20% 1440 | -10/Mines | Destroyed by as-58490 with Assembled Maul Last Messages --------------- 01378_ Imp. Light Cannon destroyed. 01383_ Knocked back. 01388_ as-58490 triggered Blade Trap. 01388_ Massive razor-sharp blades shoot up from within the floor. 01388_ Imp. Signal Interpreter destroyed. 01388_ System corrupted by crushing effect (+4). 01388_ Knocked back. 01391_ as-98403 triggered Blade Trap. 01391_ Massive razor-sharp blades shoot up from within the floor. 01391_ as-58490 triggered Blade Trap. 01391_ Massive razor-sharp blades shoot up from within the floor. 01392_ as-98403 triggered Blade Trap. 01392_ Massive razor-sharp blades shoot up from within the floor. 01394_ System corrupted: Energy discharge (-57). 01398_ Lgt. Nuclear Core destroyed. 01406_ as-98403 sneak attacks. 01408_ as-38941 destroyed. 01411_ as-98403 sneak attacks. 01420_ Carbon-fiber Leg destroyed. 01422_ System corrupted: Matter fused (-7). Map ----- +----------------------------------------------------+ | | | | | | | | | | | | | | | | | | | | | ???????????????????????????????????? | | ???????????????????????????????????? | | ???????????????????????????????????? | | ???????????????????????????????????? | | ???????????????????????????????????? | | ???????????????????????????????????? | | ?????????????#####?????????????????? | | ????????????# #?????????????????? | | ???????????? #?????????????????? | | ???????????? ??????????????????? | | ??#????????? #??????????????????? | | ??# ???##### ##?????????????????? | | ??# ### ###???????????????? | | ??# ##??????????????? | | ??# #??????????????? | | ??????# @ #??????????????? | | ??????## aa t#???????????????? | | ???????### ##a #???????????????? | | ?????????# #?# #???????????????? | | ?????????# #?? ! ????????????? | | ?????????# #??#%= $ t ?????????? | | ?????????# #??# *########??????????? | | ?????????# #### #?????????????????? | | ?????????# #?????????????????? | | ?????????##### #?????????????????? | | ?????????????# #????####????#####? | | ?????????????# ##???## ##### ## | | ?????????????# #????# # | | ?????????????# #????# # | | ?????????????# #?????# #? | | ?????????????# ####### #?????? | | ?????????????# #??????? | | ?????????????# ######## ##?????? | | ????????###??# #?????## ######? | | ???????## ### #????## ## | | ???????# ## ##???# # | | ???????# ##??# | | ???????## #??# | | ????????# #??## ## | | ????????## % ##???# #### | +----------------------------------------------------+ Best States ------------- Heat Dissipation 25 Energy Generation 14 Energy Capacity 160 Matter Stores 300 Matter Capacity 300 Sight Range 16 Terrain Scan Density 10 Evasion (%) 50 Recoil Reduction 2 Item Schematics ----------------- Med. Storage Unit | -10/Materials | Hacked Robot Schematics ------------------ None Fabricated ------------ Nothing Alien Tech Used ----------------- None Achievements -------------- None Challenges ------------ None Game ------ Seed ControlBackupMediator Manual? 0 Play Time 00:16:10 Cumulative 67.5 hours Start 2021.04.27 @ 02:27:22 End 2021.04.27 @ 02:41:30 Sessions 1 Manual Loads 0 Difficulty Rogue Special Mode None Game No. 33 Rogue 30 Adventurer 3 Explorer 0 Win Type - Total 2 Types 2/0/0/0/0/0/0/0/0 Lore% 38 Gallery% 37 Achievement% 36 Wizard Run 0 Options --------- ASCII 0 Keyboard 0 Movement Mouse Keybinds 0 Fullscreen 1 Font 24/Terminus Map View 76x50 Tactical HUD 1 Map Filters NONE Filters NONE Steam 1 RUN: cc7582ce-b064-4b9e-9bd0-cc14f73b5ac3